[Event "2nd Bassano Easter 2022"]
[Site "Bassano del Grappa"]
[Date "2022.04.15"]
[Round "3.8"]
[White "Mahitosh Dey"]
[Black "Fier, Alexandr"]
[Result "1/2-1/2"]
[ECO "D02"]
[WhiteElo "2176"]
[BlackElo "2583"]
[Annotator "TA"]
[PlyCount "60"]
[EventDate "2022.04.14"]
[EventType "swiss"]
[EventCountry "ITA"]
[SourceTitle "playchess.com"]
[Source "ChessBase"]
[SourceQuality "1"]
[TimeControl "30/3600+30:1800+30"]

{[%evp 9,60,-13,-18,-11,-3,0,-27,-35,-25,-29,-19,-22,-35,-20,-19,-41,-55,-43,-29,-22,0,0,0,0,0,0,12,0,0,0,27,24,62,94,81,-111,-83,-168,0,0,0,-8,-8,-8,-8,-8,5,6,15,8,7,6,12]} 1. d4 {[%emt 0:00:08]} Nf6 {[%emt 0:00:04]} 2. Nf3 {[%emt 0:00:05]} d5 {[%emt 0:00:02]} 3. c3 {[%emt 0:00:08]} c5 {[%emt 0:00:03]} 4. dxc5 {[%emt 0:00:07]} e6 {[%emt 0:00:02]} 5. b4 {[%emt 0:00:05]} a5 $1 {[%emt 0:00:03]} 6. e3 {[%emt 0:00:10] D02: 1 d4 d5 2 Nf3 sidelines, including 2...Nf6 3 g3 and 2...Nf6 3 Bf4.} axb4 {[%emt 0:00:03]} 7. cxb4 {[%emt 0:00:04]} b6 $1 {[%emt 0:00:05]} 8. Bb5+ {[%emt 0:00:05] Black has an edge.} Bd7 {[%emt 0:00:03]} 9. Bxd7+ {[%emt 0:00:04]} Nbxd7 {[%emt 0:00:05]} 10. a4 {[%emt 0:00:06]} bxc5 {[%emt 0:00:03]} 11. b5 {[%emt 0:00:05]} g5 {[%emt 0:00:12][%cal Bg7g5,Bg5g4][%mdl 32]} 12. Bb2 {[%emt 0:00:52]} Bd6 {[%emt 0:00:04] Inhibits Ne5.} 13. e4 {[%emt 0:06:52]} g4 {[%emt 0:05:31]} 14. Nfd2 {[%emt 0:00:07]} Qc7 {[%emt 0:00:04]} 15. Qe2 {[%emt 0:10:19]} Be5 {[%emt 0:12:12]} 16. Bxe5 {[%emt 0:00:07]} Qxe5 {[%emt 0:01:09]} 17. Ra3 {[%emt 0:01:59]} c4 {[%emt 0:02:14]} 18. O-O {[%emt 0:07:52]} O-O {[%emt 0:03:51] [#]} 19. Nc3 $146 {[%emt 0:02:59]} ({Predecessor:} 19. a5 Qb2 20. b6 Kh8 21. Re1 Nxb6 22. axb6 Rxa3 23. Nxa3 Qxa3 24. exd5 Qb2 25. dxe6 {1-0 (41) Le,Q (2709)-Vidit,S (2727) Kolkata 2021}) 19... Ra5 {[%emt 0:00:49]} 20. exd5 {[%emt 0:01:30]} exd5 {[%emt 0:00:17][%cal Be6d5,Bd5d4][%mdl 32]} 21. Qxe5 {[%emt 0:00:38]} Nxe5 {[%emt 0:00:04]} 22. Rb1 $2 {[%emt 0:04:00] [#]} (22. f3 $1 $16 {keeps the pressure on.}) 22... d4 $1 $17 {[%emt 0:02:11]} 23. Nce4 {[%emt 0:00:07] [#]} (23. Ne2 $17 {is a better defense.} c3 24. Nb3) 23... Nfd7 $2 {[%emt 0:02:52]} (23... Nxe4 $1 $19 24. Nxe4 c3) 24. Rc1 $11 {[%emt 0:03:50] The position is equal.} Nb6 {[%emt 0:01:02]} 25. Nd6 {[%emt 0:00:09]} Rfa8 {[%emt 0:02:06]} 26. f4 $1 {[%emt 0:01:22]} ({Don't blunder} 26. N2xc4 $2 Nexc4 27. Nxc4 Rc8 $19) 26... gxf3 {[%emt 0:00:23][%cal Of3f2] White must now prevent ...f2+!} 27. N2xc4 {[%emt 0:00:33]} (27. N6xc4 $2 Rc8 28. Nxa5 Rxc1+ 29. Nf1 d3 $19) 27... Nbxc4 {[%emt 0:05:37]} 28. Nxc4 {[%emt 0:00:05]} Rc8 {[%emt 0:00:03] [#]} 29. b6 $1 {[%emt 0:00:06][%cal Bb5b6,Bb6b7][%mdl 32] aiming for b7.} Nxc4 {[%emt 0:05:13]} 30. b7 {[%emt 0:00:00]} Rb8 {[%emt 0:00:00] Weighted Error Value: White=0.14 (very precise) /Black=0.11 (very precise)} ({Don't take} 30... f2+ 31. Kxf2 Rb8 32. Rxc4 Rxb7 33. Rxd4 $16) 1/2-1/2

[Event "2nd Bassano Easter 2022"]
[Site "Bassano del Grappa"]
[Date "2022.04.15"]
[Round "3.9"]
[White "Hommer, Jeremy"]
[Black "Petrov, Martin"]
[Result "1-0"]
[ECO "B51"]
[WhiteElo "2220"]
[BlackElo "2542"]
[Annotator "TA"]
[PlyCount "126"]
[EventDate "2022.04.14"]
[EventType "swiss"]
[EventCountry "ITA"]
[SourceTitle "playchess.com"]
[Source "ChessBase"]
[SourceQuality "1"]
[TimeControl "30/3600+30:1800+30"]

{[%evp 9,126,21,28,0,9,0,16,9,22,13,9,8,11,5,0,0,27,0,7,27,15,7,7,10,11,6,3,8,8,8,8,7,6,6,6,2,8,0,9,3,84,77,158,99,129,132,166,157,152,152,250,252,267,280,275,263,293,294,338,323,334,336,344,307,355,350,357,357,357,357,373,373,373,328,404,404,397,397,397,397,382,382,350,339,449,438,592,277,1689,1517,2062,1777,9003,10402,8131,3284,29964,29967,29969,29970,29971,29972,29972,29971,29975,29976,29976,29977,29977,29978,29978,29979,29979,29980,29980,29981,29991,29992,29995]} 1. e4 {[%emt 0:00:03]} c5 {[%emt 0:00:15]} 2. Nf3 {[%emt 0:00:07]} d6 {[%emt 0:00:25]} 3. Bb5+ {[%emt 0:00:07]} Nd7 {[%emt 0:00:05]} 4. O-O {[%emt 0:00:11]} a6 {[%emt 0:00:03]} 5. Bd3 {[%emt 0:00:07]} Ngf6 {[%emt 0:00:13]} 6. Re1 {[%emt 0:00:05] B51: Sicilian: Moscow Variation (3 Bb5+) without 3...Bd7.} e6 {[%emt 0:00:31] The main line 6...e6 scores better than 6...b5.} 7. c3 {[%emt 0:00:06]} b5 {[%emt 0:00:59]} 8. Bc2 {[%emt 0:00:19] The position is equal.} c4 {[%emt 0:00:15]} 9. a4 {[%emt 0:00:10]} Bb7 {[%emt 0:00:05]} 10. d4 {[%emt 0:00:09]} cxd3 {[%emt 0:00:05]} 11. Qxd3 {[%emt 0:00:06]} Nc5 {[%emt 0:00:05][%csl LRd3,LRe4]} 12. Qe2 {[%emt 0:00:06]} bxa4 {[%emt 0:00:07]} (12... Nxa4 {looks sharper.} 13. c4 Qc8 14. cxb5 axb5 15. Qxb5+ Bc6) 13. Be3 {[%emt 0:00:08]} (13. e5 {with more complications.} dxe5 14. Nxe5 Qd5 15. Qf1) 13... Bxe4 {[%emt 0:00:19]} 14. Bxc5 {[%emt 0:03:23]} Bxc2 {[%emt 0:00:08]} 15. Qxc2 {[%emt 0:00:18] Hoping for Bd4.} dxc5 {[%emt 0:00:07]} 16. Qxa4+ {[%emt 0:06:55]} Qd7 {[%emt 0:00:06]} 17. Nbd2 {[%emt 0:00:10][%cal Bb1d2,Bd2c4,Bc4e5][%mdl 32]} Bd6 {[%emt 0:19:42]} 18. Nc4 {[%emt 0:00:14]} Bc7 {[%emt 0:00:04]} 19. Nfe5 $36 {[%emt 0:00:21][%mdl 2048] White has some pressure.} Bxe5 {[%emt 0:20:17]} 20. Nxe5 {[%emt 0:00:24][%mdl 64] [#] Pin} Qxa4 {[%emt 0:00:05]} 21. Rxa4 {[%emt 0:00:07] [#]} O-O $146 {[%emt 0:00:14]} ({Predecessor:} 21... Nd7 22. Nc4 Ra7 23. Rea1 Nb8 24. Ra5 Rc7 25. R1a3 Ke7 26. g3 {½-½ (26) Tafner,E (2034)-Maltais,C (2256) ICCF email 2020}) 22. Rea1 {[%emt 0:03:56]} Rfd8 {[%emt 0:04:44]} 23. f3 {[%emt 0:02:10][%cal Bf2f3,Bf3g4][%mdl 32]} g5 {[%emt 0:04:05]} 24. Nc4 {[%emt 0:01:10]} g4 {[%emt 0:07:39]} (24... Ra7 $11 {remains equal.}) 25. fxg4 $16 {[%emt 0:02:39] White stays focused until the end.} Rab8 {[%emt 0:00:29]} (25... Ne4 $142) 26. h3 {[%emt 0:08:23]} ({Don't play} 26. Rxa6 $6 Nxg4 27. Ra7 Nf6 $14) (26. g5 $142 Nh5 27. Rxa6) 26... Kg7 {[%emt 0:01:11]} 27. Rxa6 {[%emt 0:01:22]} Ne4 {[%emt 0:00:37] [#]} 28. Ra7 $1 {[%emt 0:01:06] And now Ne5 would win.} Rd5 {[%emt 0:03:12] Inhibits Ne5.} 29. Rf1 {[%emt 0:06:51]} Rf8 {[%emt 0:00:07]} (29... Nf6 $16 30. Re1 Rd7) 30. Nb6 $18 {[%emt 0:00:00]} Rg5 {[%emt 0:00:00]} 31. Re1 {[%emt 0:11:50]} Nd6 {[%emt 0:09:08]} 32. Rxe6 {[%emt 0:01:26]} Rd8 {[%emt 0:00:38]} 33. Ree7 {[%emt 0:01:32]} Rb8 {[%emt 0:00:06]} 34. Na4 {[%emt 0:04:55]} c4 {[%emt 0:01:52]} 35. Red7 {[%emt 0:02:33]} Rg6 {[%emt 0:00:24]} 36. Ra6 {[%emt 0:06:50]} Nc8 {[%emt 0:05:06]} 37. Rxg6+ {[%emt 0:00:24]} hxg6 {[%emt 0:00:04][%mdl 4096] Endgame KRN-KRN} 38. Rd4 {[%emt 0:02:11]} Nb6 {[%emt 0:00:30]} 39. Nxb6 {[%emt 0:00:25]} Rxb6 {[%emt 0:00:04]} 40. Rxc4 {[%emt 0:00:28] b4 is the strong threat.} Rxb2 {[%emt 0:00:03] KR-KR} 41. Rc6 {[%emt 0:01:28]} g5 {[%emt 0:02:54]} 42. Kh2 {[%emt 0:00:38]} Rd2 {[%emt 0:00:06]} 43. c4 {[%emt 0:02:31][%cal Bc3c4,Bc4c5,Bc5c6,Bc6c7][%mdl 32]} Rc2 {[%emt 0:00:16]} 44. c5 {[%emt 0:00:48]} Rc3 {[%emt 0:00:22]} 45. Rc8 {[%emt 0:00:38]} Kf6 {[%emt 0:00:38]} 46. c6 {[%emt 0:00:50]} Ke5 {[%emt 0:00:21]} 47. c7 {[%emt 0:04:50] Strongly threatening Re8+.} Kf6 {[%emt 0:03:41]} 48. Kg1 {[%emt 0:00:29]} (48. g3 $142 Ke7 49. h4 (49. Rg8 Rxc7 50. Rxg5 Rc2+ 51. Kg1 Rc1+ 52. Kh2 Rc2+ 53. Kg1 Rc1+ 54. Kg2 Rc2+ 55. Kh1 Rc1+ 56. Kh2 Rc2+ $16)) 48... Kg7 $2 {[%emt 0:00:28]} (48... Ke7 49. Rg8 Rxc7 50. Rxg5 Kf8) 49. Kf2 {[%emt 0:00:19]} Rc1 {[%emt 0:10:56]} 50. g3 {[%emt 0:00:37] Black must now prevent h4.} Rc3 {[%emt 0:00:36]} 51. h4 {[%emt 0:00:53][%cal Bh3h4,Bh4h5,Bh5h6][%mdl 32]} Rc2+ {[%emt 0:11:01]} 52. Ke3 {[%emt 0:00:17]} Rc1 {[%emt 0:00:21]} 53. h5 {[%emt 0:00:35] White mates.} Rc2 {[%emt 0:00:37]} 54. Kd4 {[%emt 0:01:54]} Rc1 {[%emt 0:00:31]} 55. h6+ {[%emt 0:01:31]} Kh7 {[%emt 0:00:02]} 56. Ke5 {[%emt 0:00:26]} Re1+ {[%emt 0:01:00]} 57. Kd6 {[%emt 0:02:37]} Rd1+ {[%emt 0:00:09]} 58. Ke7 {[%emt 0:00:13]} Rc1 {[%emt 0:00:32]} 59. Kxf7 {[%emt 0:00:33]} Rc6 {[%emt 0:00:48]} 60. Ke7 {[%emt 0:00:19]} Rc1 {[%emt 0:00:31]} 61. Kf6 {[%emt 0:01:01]} Rf1+ {[%emt 0:00:30]} 62. Kxg5 {[%emt 0:01:49]} Rf8 {[%emt 0:00:29]} 63. Rd8 {[%emt 0:00:18]} Re8 {[%emt 0:01:02] Weighted Error Value: White=0.12 (very precise) /Black=0.35} 1-0

[Event "2nd Bassano Easter 2022"]
[Site "Bassano del Grappa"]
[Date "2022.04.15"]
[Round "3.10"]
[White "Abel, Dennes"]
[Black "Pozzari, Simone"]
[Result "1-0"]
[ECO "D30"]
[WhiteElo "2442"]
[BlackElo "2227"]
[Annotator "TA"]
[PlyCount "102"]
[EventDate "2022.04.14"]
[EventType "swiss"]
[EventCountry "ITA"]
[SourceTitle "playchess.com"]
[Source "ChessBase"]
[SourceQuality "1"]
[TimeControl "30/3600+30:1800+30"]

{[%evp 9,102,10,10,1,10,8,2,0,14,5,14,10,18,-33,-17,-25,0,0,0,0,0,0,0,-26,0,-14,0,-32,-33,-39,-20,-29,83,78,75,60,75,98,127,115,129,119,165,165,168,169,172,178,167,165,235,219,201,144,184,166,187,183,185,185,185,180,185,185,185,185,175,175,183,191,190,167,226,234,291,285,432,432,639,593,880,420,379,364,29982,29983,29983,29984,29984,29985,29985,29986,29988,29970,29995]} 1. d4 {[%emt 0:07:43]} d5 {[%emt 0:00:10]} 2. c4 {[%emt 0:00:07]} c6 {[%emt 0:00:05]} 3. Nf3 {[%emt 0:00:07]} e6 {[%emt 0:00:07]} 4. Bg5 {[%emt 0:01:44]} Be7 {[%emt 0:00:05]} 5. Bxe7 {[%emt 0:00:06]} Qxe7 {[%emt 0:00:04]} 6. Qc2 {[%emt 0:00:51] D30: Queen's Gambit Declined: Systems without Nc3.} Nf6 {[%emt 0:00:22]} 7. e3 {[%emt 0:00:33]} O-O {[%emt 0:00:30]} 8. Nc3 {[%emt 0:01:36] The position is equal.} Nbd7 {[%emt 0:02:40]} 9. cxd5 {[%emt 0:06:37]} exd5 {[%emt 0:00:41]} 10. Bd3 {[%emt 0:00:18]} Re8 {[%emt 0:00:53]} 11. O-O-O {[%emt 0:04:19]} ({White should play} 11. O-O $11) 11... Ne4 {[%emt 0:07:05]} 12. Kb1 {[%emt 0:00:29] [#]} a5 $146 {[%emt 0:04:00]} ({Predecessor:} 12... b6 13. Rc1 Bb7 14. h4 c5 15. Bb5 Rac8 16. Ne5 cxd4 17. Bxd7 Nxc3+ 18. bxc3 Rxc3 {0-1 (51) Hurme,H (2168)-Aijala,J (2130) Helsinki 2013}) 13. Rc1 {[%emt 0:01:36]} b5 {[%emt 0:06:59][%cal Bb7b5,Bb5b4][%mdl 32]} 14. Bxe4 {[%emt 0:06:38]} (14. Nxe4 dxe4 15. Qxc6 Rb8 16. Bxe4 (16. Bxb5 $2 exf3 17. gxf3 Nf8 $17) 16... Qxe4+ 17. Qxe4 Rxe4 $17) 14... dxe4 {[%emt 0:00:13]} 15. Nd2 {[%emt 0:00:04][%cal Rc2e4,Bf3d2,Bd2b3,Bb3c5][%mdl 32]} Nf6 {[%emt 0:01:14]} 16. Nb3 {[%emt 0:01:30]} Ba6 {[%emt 0:07:23] [#] aiming for ...b4.} 17. Nc5 {[%emt 0:01:34]} (17. Nxa5 $2 b4 18. Nxc6 Qb7 19. Nxb4 Qxb4 $19) 17... b4 {[%emt 0:00:49]} 18. Ne2 {[%emt 0:04:16]} Bb5 {[%emt 0:03:03]} 19. Qd2 {[%emt 0:01:49]} a4 {[%emt 0:06:28]} 20. Ng3 {[%emt 0:02:00]} g6 {[%emt 0:02:51]} (20... b3 $11) 21. Qxb4 $16 {[%emt 0:03:33]} Nd5 {[%emt 0:05:43]} 22. Qd2 {[%emt 0:00:21]} f5 {[%emt 0:00:55]} 23. Ne2 {[%emt 0:01:06] Black is on the road to losing.} Reb8 {[%emt 0:04:23]} 24. Ka1 {[%emt 0:02:36]} Qf7 {[%emt 0:02:05]} 25. Nc3 {[%emt 0:05:11] Pair of Knights!} Nb4 {[%emt 0:01:30]} (25... a3 $16 26. b3 Re8) 26. a3 $18 {[%emt 0:00:52]} Nd3 {[%emt 0:01:47]} 27. Nxd3 {[%emt 0:00:06]} Bxd3 {[%emt 0:00:07] [#]} 28. Na2 $1 {[%emt 0:01:05]} Bc4 {[%emt 0:08:22]} 29. Nb4 {[%emt 0:00:30]} Rb6 {[%emt 0:00:26]} (29... Rc8 {might work better.} 30. Qc3 Bd5) 30. Qc3 {[%emt 0:00:00]} Bd5 {[%emt 0:00:00]} 31. Nxd5 {[%emt 0:13:43]} Qxd5 {[%emt 0:06:27]} 32. Rhd1 {[%emt 0:04:51][%cal Bh1d1,Bd1d2,Bd2c2][%mdl 32]} Rab8 {[%emt 0:03:25]} 33. Rd2 {[%emt 0:00:15]} Kg7 {[%emt 0:12:18]} 34. Qc4 {[%emt 0:01:55]} Qa5 {[%emt 0:01:24]} 35. Rcc2 {[%emt 0:01:10] And now d5 would win.} Qb5 {[%emt 0:04:43]} 36. Qxb5 {[%emt 0:01:42]} cxb5 {[%emt 0:00:06][%mdl 4096] Endgame KRR-KRR} 37. Rc7+ {[%emt 0:00:19]} Kf6 {[%emt 0:01:35]} 38. Rdc2 {[%emt 0:01:19]} (38. Rxh7 Rc8 $16) 38... R8b7 {[%emt 0:03:08]} 39. Rxb7 {[%emt 0:02:32]} Rxb7 {[%emt 0:00:04] KR-KR} 40. b3 {[%emt 0:01:09]} axb3 {[%emt 0:01:17]} (40... f4 $142 41. Rc6+ (41. exf4 Kf5 $16) 41... Ke7) 41. Rc5 {[%emt 0:00:11]} Ra7 {[%emt 0:03:35]} 42. Kb2 {[%emt 0:00:21]} ({Stronger than} 42. Rxb5 Rxa3+ 43. Kb1 Ke6 $11) 42... b4 {[%emt 0:00:03]} (42... Ra5 $142 43. h4 (43. Kxb3 h5 $18) 43... h5 44. Kxb3 Ke6 45. d5+ Kd7) 43. axb4 {[%emt 0:00:08][%cal Ba3b4,Bb4b5,Bb5b6,Bb6b7][%mdl 32]} Ra2+ {[%emt 0:00:03]} (43... Ke7 $142 44. Kxb3 Kd6) 44. Kxb3 {[%emt 0:00:07]} Rxf2 {[%emt 0:00:03]} 45. Rc2 {[%emt 0:02:00]} (45. b5 $142 Rf1 46. Kb2 (46. Rc6+ Ke7 $16) 46... Rf2+ 47. Rc2 Rxc2+ 48. Kxc2) 45... Rf1 {[%emt 0:00:53]} 46. b5 {[%emt 0:01:01]} Ke6 $2 {[%emt 0:00:14]} (46... f4 $18 47. exf4 Ke6) 47. Kb2 {[%emt 0:05:35] White mates.} f4 {[%emt 0:01:02]} 48. b6 {[%emt 0:00:38]} fxe3 {[%emt 0:01:01]} 49. b7 {[%emt 0:00:06]} Rf8 {[%emt 0:00:40]} 50. Rc8 {[%emt 0:00:14]} Rf2+ {[%emt 0:00:37]} 51. Kc3 {[%emt 0:01:37]} Kd5 {[%emt 0:00:00] Weighted Error Value: White=0.14 (very precise) /Black=0.37} 1-0

[Event "2nd Bassano Easter 2022"]
[Site "Bassano del Grappa"]
[Date "2022.04.15"]
[Round "4.1"]
[White "Nesterov, Arseniy"]
[Black "Basso, Pier Luigi"]
[Result "1/2-1/2"]
[ECO "E94"]
[WhiteElo "2522"]
[BlackElo "2600"]
[Annotator "TA"]
[PlyCount "40"]
[EventDate "2022.04.14"]
[EventType "swiss"]
[EventCountry "ITA"]
[SourceTitle "playchess.com"]
[Source "ChessBase"]
[SourceQuality "1"]
[TimeControl "30/3600+30:1800+30"]

{[%evp 15,40,20,53,20,35,35,29,0,25,33,37,24,25,19,28,0,0,0,0,0,0,0,0,0,0,0,0]} 1. d4 {[%emt 0:00:03]} g6 {[%emt 0:00:15]} 2. c4 {[%emt 0:00:11]} Bg7 {[%emt 0:00:05]} 3. Nf3 {[%emt 0:00:05]} d6 {[%emt 0:00:11]} 4. e4 {[%emt 0:01:11]} Nf6 {[%emt 0:05:08]} 5. Nc3 {[%emt 0:00:14]} O-O {[%emt 0:00:03]} 6. Be2 {[%emt 0:00:18]} Na6 {[%emt 0:00:33]} 7. O-O {[%emt 0:01:15]} e5 {[%emt 0:00:05]} 8. Be3 {[%emt 0:00:07]} Qe7 {[%emt 0:01:08][%cal Of6e4] 8...c6 gains popularity.} 9. Qc2 {[%emt 0:02:34] E94: King's Indian: Classical: 6 Be2 e5 7 0-0: Various Black 7th moves.} exd4 {[%emt 0:03:14]} 10. Nxd4 {[%emt 0:00:16]} c6 {[%emt 0:00:08]} 11. Rfe1 {[%emt 0:01:38] White has an edge.} Re8 {[%emt 0:01:13][%cal Rf6e4]} 12. f3 {[%emt 0:00:16] [#]} d5 $146 {[%emt 0:02:20]} ({Predecessor:} 12... Nc5 13. Rad1 a5 14. Bf1 Nfd7 {½-½ (14) Laclau,D (2301)-Bernal Moro,L (2435) La Massana 2015}) 13. cxd5 {[%emt 0:00:34]} Nb4 {[%emt 0:00:45][%csl LRc2,LRd5]} 14. Qd2 {[%emt 0:01:16] [#] Nb3 is the strong threat.} Nbxd5 {[%emt 0:02:36]} 15. Bh6 {[%emt 0:04:58]} Nxc3 {[%emt 0:03:32] The position is equal.} 16. bxc3 {[%emt 0:00:13]} Bxh6 {[%emt 0:01:49]} 17. Qxh6 {[%emt 0:00:13]} Qc5 {[%emt 0:00:04]} 18. Qd2 {[%emt 0:01:06]} Be6 {[%emt 0:02:17]} 19. Qb2 {[%emt 0:00:49]} Rab8 {[%emt 0:01:14]} 20. Qb4 {[%emt 0:00:31]} Qe5 {[%emt 0:01:11] Weighted Error Value: White=0.11 (very precise) /Black=0.05 (flawless)} 1/2-1/2

[Event "2nd Bassano Easter 2022"]
[Site "Bassano del Grappa"]
[Date "2022.04.15"]
[Round "4.2"]
[White "Gallego Alcazar, Andres Felipe"]
[Black "Heberla, Bartlomiej"]
[Result "1/2-1/2"]
[ECO "E05"]
[WhiteElo "2523"]
[BlackElo "2570"]
[Annotator "TA"]
[PlyCount "47"]
[EventDate "2022.04.14"]
[EventType "swiss"]
[EventCountry "ITA"]
[SourceTitle "playchess.com"]
[Source "ChessBase"]
[SourceQuality "1"]
[TimeControl "30/3600+30:1800+30"]

{[%evp 22,47,-11,-63,0,0,0,0,0,-20,-20,-20,-8,-15,0,-12,0,0,0,5,6,2,0,0,-10,-45,-18,-18]} 1. d4 {[%emt 0:00:06]} d5 {[%emt 0:02:07]} 2. Nf3 {[%emt 0:00:11]} e6 {[%emt 0:00:11]} 3. c4 {[%emt 0:00:12]} Nf6 {[%emt 0:00:04]} 4. g3 {[%emt 0:00:09]} Be7 {[%emt 0:00:20]} 5. Bg2 {[%emt 0:00:14]} O-O {[%emt 0:00:19]} 6. O-O {[%emt 0:00:23]} dxc4 {[%emt 0:00:03]} 7. Na3 {[%emt 0:00:24]} Bxa3 {[%emt 0:02:13]} 8. bxa3 {[%emt 0:00:07]} Bd7 {[%emt 0:00:04]} 9. Ne5 {[%emt 0:00:12]} Bc6 {[%emt 0:01:01]} 10. Nxc6 {[%emt 0:00:06]} Nxc6 {[%emt 0:00:04][%cal Bb8c6,Bc6e7,Be7f5,Bf5d6][%mdl 32]} 11. Bb2 {[%emt 0:00:17]} Nd5 {[%emt 0:10:08]} 12. Rc1 {[%emt 0:00:20]} ({Better is} 12. a4 $11) 12... Nb6 {[%emt 0:00:10] E05: Open Catalan: 5 Nf3 Be7.} (12... b5 $15) 13. e3 $11 {[%emt 0:00:30]} Qd7 {[%emt 0:03:05]} 14. Qc2 {[%emt 0:03:51]} Rab8 {[%emt 0:01:07] [#]} 15. Rb1 $146 {[%emt 0:01:39]} ({Predecessor:} 15. Rfd1 Ne7 16. Bc3 Ned5 17. Ba1 Rfd8 18. Bf1 Rbc8 19. Bxc4 Nxc4 20. Qxc4 Nf6 21. Qb3 {½-½ (56) Thomas,R (2185)-James,D (2220) Sunningdale 2007}) 15... Ne7 {[%emt 0:00:51]} 16. Rfc1 {[%emt 0:02:35]} Rfc8 {[%emt 0:02:41]} 17. Bf1 {[%emt 0:05:05]} Nf5 {[%emt 0:14:43]} 18. Bxc4 {[%emt 0:08:47]} Nxc4 {[%emt 0:00:02]} 19. Qxc4 {[%emt 0:00:12]} Qd5 {[%emt 0:02:35]} 20. Qb3 {[%emt 0:09:05]} Nd6 {[%emt 0:02:28]} 21. Rc5 {[%emt 0:01:35]} Qf3 {[%emt 0:03:47]} 22. Qc2 {[%emt 0:04:33]} c6 {[%emt 0:02:07] ...b6 is the strong threat.} 23. Rc1 {[%emt 0:03:42]} (23. Qd1 $5 {[%cal Rd1f3]} Qe4 24. Rbc1 $11) 23... f6 {[%emt 0:03:06] [#] aiming for ...Ne4.} (23... Ne4 $5 {[%cal Re4c5]} 24. Re5 f5 $15) 24. Qd1 {[%emt 0:02:59] An even fight not without its subleties.  Weighted Error Value: White=0.14 (very precise) /Black=0.09 (flawless)} 1/2-1/2

[Event "2nd Bassano Easter 2022"]
[Site "Bassano del Grappa"]
[Date "2022.04.15"]
[Round "4.3"]
[White "Bernadskiy, Vitaliy"]
[Black "Gilevych, Artem"]
[Result "1-0"]
[ECO "D46"]
[WhiteElo "2601"]
[BlackElo "2422"]
[Annotator "TA"]
[PlyCount "49"]
[EventDate "2022.04.14"]
[EventType "swiss"]
[EventCountry "ITA"]
[SourceTitle "playchess.com"]
[Source "ChessBase"]
[SourceQuality "1"]
[TimeControl "30/3600+30:1800+30"]

{[%evp 25,49,54,65,41,56,26,29,30,83,31,36,46,318,315,669,642,631,625,1838,788,29985,29986,29990,29991,29991,29992]} 1. d4 {[%emt 0:00:04]} d5 {[%emt 0:00:59]} 2. c4 {[%emt 0:00:07]} e6 {[%emt 0:00:26]} 3. Nc3 {[%emt 0:00:06]} c6 {[%emt 0:00:08]} 4. e3 {[%emt 0:01:09]} Nf6 {[%emt 0:01:47]} 5. Nf3 {[%emt 0:01:01]} Nbd7 {[%emt 0:02:07]} 6. Bd3 {[%emt 0:00:26]} Bd6 {[%emt 0:05:23]} 7. e4 {[%emt 0:02:38]} dxe4 {[%emt 0:04:22]} 8. Nxe4 {[%emt 0:02:07]} Nxe4 {[%emt 0:00:01]} 9. Bxe4 {[%emt 0:00:06]} O-O {[%emt 0:01:19]} 10. O-O {[%emt 0:00:09]} h6 {[%emt 0:00:04]} 11. Re1 {[%emt 0:01:06]} e5 {[%emt 0:02:14]} 12. Bc2 {[%emt 0:13:18]} exd4 {[%emt 0:05:00]} 13. Qxd4 {[%emt 0:00:07]} Bc5 {[%emt 0:02:05]} 14. Qc3 {[%emt 0:05:20] Hoping for b4. &Bianco is much more active. The black rooks are badly placed. D46: Semi-Slav: 5 e3 Nbd7 6 Bd3, Black avoids the Meran.} Qb6 {[%emt 0:07:15] [#] Prevents b4.} 15. Bxh6 $5 {[%emt 0:06:22][%mdl 4] A promising side line.} gxh6 {[%emt 0:08:56]} 16. Re4 {[%emt 0:00:20][%cal Re4g4] [#] White has an edge.} Bxf2+ $146 {[%emt 0:01:21]} (16... h5 $11 {keeps the balance.}) ({Predecessor:} 16... f5 17. Re6 Kh7 18. Rd1 Qb4 19. Ng5+ hxg5 20. Bxf5+ Rxf5 21. Qh3+ Kg8 22. Rg6+ Kf7 23. Qxf5+ {1-0 (32) Ma,Z (2465)-Zhao,Y (2386) China 2017}) 17. Kf1 {[%emt 0:01:23]} (17. Kh1 $16 {[%cal Re4g4]} f6 18. Rd1) 17... Nc5 $14 {[%emt 0:01:33]} 18. Re2 $40 {[%emt 0:03:05][%cal Be4e2,Be2f2,Bf2f3,Bf3g3][%mdl 160] White attacks.} Be6 $2 {[%emt 0:13:22][%mdl 8192] Loses the game.} 19. Rxf2 $18 {[%emt 0:01:26] Ne5 is the strong threat.} a5 $2 {[%emt 0:00:05]} (19... Qc7 20. b4 Nd7) 20. Ne5 {[%emt 0:01:02] Qg3+ would kill now.} Qd8 {[%emt 0:01:33]} 21. Rf3 {[%emt 0:02:08] Strongly threatening Rg3+.} Re8 {[%emt 0:00:29] [#]} 22. Kg1 {[%emt 0:05:37]} (22. Nxf7 $142 $1 {[%mdl 512]} Bxf7 {[#]} 23. Bh7+ $1 {[%mdl 512]} Kf8 24. Bg6) 22... Qd6 {[%emt 0:06:43]} 23. Rg3+ {[%emt 0:00:37] White mates.} Kf8 {[%emt 0:00:05] [#]} 24. Ng6+ $1 {[%emt 0:00:19][%mdl 512]} fxg6 {[%emt 0:00:09]} 25. Qf6+ {[%emt 0:00:07] Weighted Error Value: White=0.11 (very precise) /Black=1.08} 1-0